[Event "Sambir Charity 2024"]
[Site "Sambir"]
[Date "2024.09.22"]
[Round "7.2"]
[White "Mikhaletz, Lubomir"]
[Black "Hnatyshyn, Anastasiia"]
[Result "1-0"]
[ECO "A01"]
[WhiteElo "2272"]
[BlackElo "2081"]
[PlyCount "67"]
[EventDate "2024.09.10"]
[EventType "swiss"]
[EventCountry "UKR"]
[TimeControl "5400+30"]

1. b3 {[%emt 1:20:51]} d5 {[%emt 1:20:52]} 2. Bb2 {[%emt 0:00:26]} Nf6 {[%emt 0:00:28]} 3. e3 {[%emt 0:00:28]} e6 {[%emt 0:00:33]} 4. f4 {[%emt 0:00:29]} c5 {[%emt 0:00:30]} 5. Nf3 {[%emt 0:00:26]} Nc6 {[%emt 0:00:27]} 6. Bb5 {[%emt 0:00:42]} Bd7 {[%emt 0:00:36]} 7. Bxc6 {[%emt 0:00:28]} Bxc6 {[%emt 0:00:28]} 8. Ne5 {[%emt 0:00:26]} Qc7 {[%emt 0:00:34]} 9. Qf3 {[%emt 0:00:33]} O-O-O {[%emt 0:01:18]} 10. a4 {[%emt 0:01:34]} Be8 {[%emt 0:00:56]} 11. Na3 {[%emt 0:01:50]} a6 {[%emt 0:00:30]} 12. c4 {[%emt 0:01:06]} Ne4 {[%emt 0:02:17]} 13. Nb5 {[%emt 0:01:51]} axb5 {[%emt 0:01:13]} 14. axb5 {[%emt 0:00:26]} Kb8 {[%emt 0:01:52]} 15. d3 {[%emt 0:00:35]} Nd6 {[%emt 0:00:42]} 16. O-O {[%emt 0:00:37]} f6 {[%emt 0:01:04]} 17. Ng4 {[%emt 0:00:27]} Bh5 {[%emt 0:01:29]} 18. Qh3 {[%emt 0:00:27]} Bxg4 {[%emt 0:00:34]} 19. Qxg4 {[%emt 0:00:27]} Nf5 {[%emt 0:00:26]} 20. Qe2 {[%emt 0:00:34]} Bd6 {[%emt 0:02:12]} 21. Bc3 {[%emt 0:01:23]} b6 {[%emt 0:01:22]} 22. Ra6 {[%emt 0:00:40]} Kb7 {[%emt 0:00:44]} 23. Rfa1 {[%emt 0:00:27]} Ra8 {[%emt 0:00:37]} 24. Qa2 {[%emt 0:00:27]} Qb8 {[%emt 0:00:32]} 25. cxd5 {[%emt 0:01:12]} exd5 {[%emt 0:00:31]} 26. b4 {[%emt 0:00:27]} c4 {[%emt 0:00:31]} 27. dxc4 {[%emt 0:00:30]} Nxe3 {[%emt 0:00:34]} 28. c5 {[%emt 0:00:47]} bxc5 {[%emt 0:00:32]} 29. Qd2 {[%emt 0:00:48]} d4 {[%emt 0:00:30]} 30. Rxa8 {[%emt 0:00:52]} Qxa8 {[%emt 0:00:27]} 31. Rxa8 {[%emt 0:00:29]} dxc3 {[%emt 0:00:33]} 32. Qxd6 {[%emt 0:00:32]} Rxa8 {[%emt 0:00:27]} 33. Qc6+ {[%emt 0:00:36]} Kb8 {[%emt 0:00:27]} 34. b6 {[%emt 0:00:33]} 1-0

[Event "Sambir Charity 2024"]
[Site "Sambir"]
[Date "2024.09.22"]
[Round "7.3"]
[White "Voloshchuk, Svyatoslav"]
[Black "Baziuk, Vladyslav"]
[Result "1/2-1/2"]
[ECO "B12"]
[WhiteElo "1809"]
[BlackElo "2247"]
[PlyCount "168"]
[EventDate "2024.09.10"]
[EventType "swiss"]
[EventCountry "UKR"]
[TimeControl "5400+30"]

1. e4 {[%emt 1:20:52]} c6 {[%emt 1:20:50]} 2. d4 {[%emt 0:00:50]} d5 {[%emt 0:00:27]} 3. e5 {[%emt 0:00:34]} c5 {[%emt 0:00:26]} 4. Nf3 {[%emt 0:00:40]} cxd4 {[%emt 0:00:32]} 5. Nxd4 {[%emt 0:00:27]} Nc6 {[%emt 0:00:25]} 6. Nxc6 {[%emt 0:00:33]} bxc6 {[%emt 0:00:26]} 7. Bd3 {[%emt 0:00:40]} e6 {[%emt 0:00:50]} 8. O-O {[%emt 0:01:10]} Ne7 {[%emt 0:01:21]} 9. Nd2 {[%emt 0:03:05]} Ng6 {[%emt 0:00:32]} 10. f4 {[%emt 0:00:52]} Be7 {[%emt 0:00:48]} 11. Nf3 {[%emt 0:01:38]} O-O {[%emt 0:00:42]} 12. Be3 {[%emt 0:01:05]} c5 {[%emt 0:00:46]} 13. c3 {[%emt 0:01:14]} Rb8 {[%emt 0:01:17]} 14. b3 {[%emt 0:00:48]} Qa5 {[%emt 0:00:47]} 15. Qc2 {[%emt 0:01:13]} Ba6 {[%emt 0:00:27]} 16. c4 {[%emt 0:00:43]} dxc4 {[%emt 0:00:59]} 17. Bxc4 {[%emt 0:00:28]} Bxc4 {[%emt 0:02:43]} 18. Qxc4 {[%emt 0:00:30]} Rfc8 {[%emt 0:00:31]} 19. Bd2 {[%emt 0:00:51]} Qb6 {[%emt 0:00:55]} 20. Rac1 {[%emt 0:00:38]} h6 {[%emt 0:00:50]} 21. Rc2 {[%emt 0:00:39]} Rd8 {[%emt 0:00:51]} 22. Be3 {[%emt 0:00:29]} Rd5 {[%emt 0:00:27]} 23. f5 {[%emt 0:00:54]} Nxe5 {[%emt 0:00:31]} 24. Nxe5 {[%emt 0:00:38]} Rxe5 {[%emt 0:00:27]} 25. Bf4 {[%emt 0:00:27]} Rxf5 {[%emt 0:00:30]} 26. Bxb8 {[%emt 0:00:26]} Rxf1+ {[%emt 0:00:30]} 27. Kxf1 {[%emt 0:00:37]} Qxb8 {[%emt 0:00:26]} 28. Kg1 {[%emt 0:01:07]} Qe5 {[%emt 0:00:33]} 29. g3 {[%emt 0:00:35]} g6 {[%emt 0:01:11]} 30. Kg2 {[%emt 0:00:36]} h5 {[%emt 0:00:39]} 31. Re2 {[%emt 0:00:27]} Qd6 {[%emt 0:00:36]} 32. Qf4 {[%emt 0:00:29]} Qc6+ {[%emt 0:00:45]} 33. Qf3 {[%emt 0:00:25]} Qc7 {[%emt 0:00:35]} 34. Qf4 {[%emt 0:00:29]} Qb7+ {[%emt 0:01:16]} 35. Qf3 {[%emt 0:00:26]} Qd7 {[%emt 0:00:26]} 36. Rf2 {[%emt 0:00:41]} Bf8 {[%emt 0:00:37]} 37. Qe4 {[%emt 0:00:33]} Bg7 {[%emt 0:00:35]} 38. Rc2 {[%emt 0:00:28]} Bd4 {[%emt 0:00:36]} 39. Rc4 {[%emt 0:00:34]} e5 {[%emt 0:00:40]} 40. Rc2 {[%emt 0:00:30]} Kg7 {[%emt 0:00:36]} 41. Re2 {[%emt 0:00:30]} Qb5 {[%emt 0:00:33]} 42. Rc2 {[%emt 0:00:30]} Qb4 {[%emt 0:00:40]} 43. Qe2 {[%emt 0:00:31]} Qb7+ {[%emt 0:00:33]} 44. Qf3 {[%emt 0:00:26]} e4 {[%emt 0:00:40]} 45. Qf4 {[%emt 0:00:33]} e3+ {[%emt 0:00:31]} 46. Qf3 {[%emt 0:00:26]} Qe7 {[%emt 0:00:26]} 47. Kf1 {[%emt 0:00:36]} h4 {[%emt 0:00:30]} 48. Ke2 {[%emt 0:00:30]} hxg3 {[%emt 0:00:29]} 49. hxg3 {[%emt 0:00:26]} Qe6 {[%emt 0:00:28]} 50. Kd3 {[%emt 0:00:32]} Qa6+ {[%emt 0:00:27]} 51. Ke4 {[%emt 0:00:32]} Qe6+ {[%emt 0:01:10]} 52. Kd3 {[%emt 0:00:30]} Qa6+ {[%emt 0:00:28]} 53. Ke4 {[%emt 0:00:26]} Qc6+ {[%emt 0:00:26]} 54. Kf4 {[%emt 0:00:27]} Qf6+ {[%emt 0:00:39]} 55. Ke4 {[%emt 0:00:30]} Qc6+ {[%emt 0:00:29]} 56. Kf4 {[%emt 0:00:27]} Qf6+ {[%emt 0:00:33]} 57. Ke4 {[%emt 0:00:26]} Qg5 {[%emt 0:00:27]} 58. Kd3 {[%emt 0:00:36]} Qe5 {[%emt 0:00:30]} 59. Rg2 {[%emt 0:00:39]} Qe6 {[%emt 0:00:28]} 60. Rc2 {[%emt 0:00:28]} a5 {[%emt 0:00:27]} 61. Qe4 {[%emt 0:00:31]} Qa6+ {[%emt 0:00:28]} 62. Rc4 {[%emt 0:00:25]} a4 {[%emt 0:00:37]} 63. Ke2 {[%emt 0:00:36]} axb3 {[%emt 0:00:28]} 64. axb3 {[%emt 0:00:25]} Qa1 {[%emt 0:00:29]} 65. b4 Qg1 {[%emt 0:00:35]} 66. Rxd4 {[%emt 0:01:05]} Qf2+ {[%emt 0:00:29]} 67. Kd1 {[%emt 0:00:29]} cxd4 {[%emt 0:00:29]} 68. Qxd4+ {[%emt 0:00:25]} f6 {[%emt 0:00:31]} 69. Qd7+ {[%emt 0:00:30]} Kg8 {[%emt 0:00:28]} 70. Qc8+ {[%emt 0:00:31]} Kg7 {[%emt 0:00:27]} 71. Qd7+ Kh6 {[%emt 0:00:28]} 72. Qh3+ {[%emt 0:01:03]} Kg7 {[%emt 0:00:36]} 73. Qc8 {[%emt 0:00:25]} Kf7 {[%emt 0:00:24]} 74. Qc6 {[%emt 0:00:27]} Ke7 {[%emt 0:00:31]} 75. Qc7+ {[%emt 0:00:30]} Ke6 {[%emt 0:00:30]} 76. Qc6+ Kf5 {[%emt 0:00:30]} 77. Qc2+ {[%emt 0:01:00]} Qxc2+ {[%emt 0:00:37]} 78. Kxc2 {[%emt 0:00:26]} Ke4 {[%emt 0:00:25]} 79. Kd1 {[%emt 0:00:40]} f5 {[%emt 0:00:30]} 80. b5 {[%emt 0:00:30]} Kd5 {[%emt 0:00:27]} 81. Ke2 {[%emt 0:00:33]} g5 {[%emt 0:00:27]} 82. Kxe3 {[%emt 0:00:27]} f4+ {[%emt 0:00:26]} 83. gxf4 {[%emt 0:00:26]} gxf4+ {[%emt 0:00:26]} 84. Kxf4 {[%emt 0:00:26]} Kc5 {[%emt 0:00:26]} 1/2-1/2

[Event "Sambir Charity 2024"]
[Site "Sambir"]
[Date "2024.09.22"]
[Round "7.4"]
[White "Pankiv, Maksym"]
[Black "Abramchuk, Klavdia"]
[Result "1/2-1/2"]
[ECO "A58"]
[WhiteElo "1961"]
[BlackElo "2120"]
[PlyCount "67"]
[EventDate "2024.09.10"]
[EventType "swiss"]
[EventCountry "UKR"]
[TimeControl "5400+30"]

1. d4 {[%emt 1:20:51]} Nf6 {[%emt 1:20:52]} 2. c4 {[%emt 0:00:26]} c5 {[%emt 0:00:25]} 3. d5 {[%emt 0:00:26]} b5 {[%emt 0:00:26]} 4. cxb5 {[%emt 0:00:26]} a6 {[%emt 0:00:25]} 5. bxa6 {[%emt 0:00:26]} Bxa6 {[%emt 0:00:26]} 6. Nc3 {[%emt 0:00:26]} d6 {[%emt 0:00:27]} 7. g3 {[%emt 0:00:26]} g6 {[%emt 0:00:27]} 8. Bg2 {[%emt 0:00:25]} Bg7 {[%emt 0:00:25]} 9. Nf3 {[%emt 0:00:27]} O-O {[%emt 0:00:27]} 10. O-O {[%emt 0:00:26]} Nbd7 {[%emt 0:00:26]} 11. Re1 {[%emt 0:00:27]} Nb6 {[%emt 0:00:32]} 12. e4 {[%emt 0:00:29]} Nfd7 {[%emt 0:00:27]} 13. Bf1 {[%emt 0:01:15]} Bxf1 {[%emt 0:00:30]} 14. Kxf1 {[%emt 0:00:27]} Nc4 {[%emt 0:00:49]} 15. Qe2 {[%emt 0:00:38]} Nce5 {[%emt 0:00:48]} 16. Nd2 {[%emt 0:00:50]} Nb6 {[%emt 0:00:50]} 17. f4 {[%emt 0:01:06]} Ned7 {[%emt 0:00:27]} 18. Nc4 {[%emt 0:00:25]} Nxc4 {[%emt 0:00:30]} 19. Qxc4 {[%emt 0:00:26]} Nb6 {[%emt 0:00:26]} 20. Qe2 {[%emt 0:00:30]} Na4 {[%emt 0:00:38]} 21. Qc2 {[%emt 0:01:33]} Qd7 {[%emt 0:01:20]} 22. Bd2 {[%emt 0:00:58]} Rfb8 {[%emt 0:00:59]} 23. b3 {[%emt 0:00:42]} Nxc3 {[%emt 0:00:33]} 24. Bxc3 {[%emt 0:00:26]} Qb5+ {[%emt 0:00:40]} 25. Kg2 {[%emt 0:00:40]} Bxc3 {[%emt 0:00:34]} 26. Qxc3 {[%emt 0:00:26]} Ra3 {[%emt 0:00:28]} 27. e5 {[%emt 0:02:50]} Rba8 {[%emt 0:01:17]} 28. exd6 {[%emt 0:01:54]} Rxa2+ {[%emt 0:00:37]} 29. Rxa2 {[%emt 0:00:26]} Rxa2+ {[%emt 0:00:26]} 30. Kg1 {[%emt 0:00:26]} exd6 {[%emt 0:00:52]} 31. Qf6 {[%emt 0:00:29]} Re2 {[%emt 0:01:28]} 32. Ra1 {[%emt 0:01:12]} Qe8 {[%emt 0:00:32]} 33. Qc3 {[%emt 0:01:12]} Re3 {[%emt 0:01:27]} 34. Qc2 {[%emt 0:01:29]} 1/2-1/2

[Event "Sambir Charity 2024"]
[Site "Sambir"]
[Date "2024.09.22"]
[Round "8.1"]
[White "Bondarenko, Stanislav"]
[Black "Mikhaletz, Lubomir"]
[Result "1-0"]
[ECO "A13"]
[WhiteElo "1780"]
[BlackElo "2272"]
[PlyCount "127"]
[EventDate "2024.09.10"]
[EventType "swiss"]
[EventCountry "UKR"]
[TimeControl "5400+30"]

1. c4 {[%emt 1:20:52]} e6 {[%emt 1:20:52]} 2. Nc3 {[%emt 0:00:27]} b6 {[%emt 0:00:33]} 3. Nf3 {[%emt 0:00:27]} Bb7 {[%emt 0:00:25]} 4. g3 {[%emt 0:00:26]} Bxf3 {[%emt 0:00:28]} 5. exf3 {[%emt 0:00:27]} d5 {[%emt 0:01:04]} 6. cxd5 {[%emt 0:00:28]} exd5 {[%emt 0:00:27]} 7. d4 {[%emt 0:00:27]} Nf6 {[%emt 0:00:54]} 8. Bd3 {[%emt 0:00:39]} c6 {[%emt 0:01:21]} 9. O-O {[%emt 0:00:29]} Be7 {[%emt 0:00:34]} 10. Bf4 {[%emt 0:00:42]} O-O {[%emt 0:00:37]} 11. Rc1 {[%emt 0:00:31]} Bd6 {[%emt 0:01:06]} 12. Qd2 {[%emt 0:00:43]} Nh5 {[%emt 0:01:58]} 13. Bxd6 {[%emt 0:00:38]} Qxd6 {[%emt 0:00:27]} 14. Qg5 {[%emt 0:00:27]} Nf6 {[%emt 0:01:13]} 15. Rfe1 {[%emt 0:01:03]} Nbd7 {[%emt 0:00:38]} 16. Nd1 {[%emt 0:00:39]} Rfe8 {[%emt 0:01:35]} 17. Ne3 {[%emt 0:00:40]} g6 {[%emt 0:01:12]} 18. a3 {[%emt 0:00:45]} Kh8 {[%emt 0:00:40]} 19. Red1 {[%emt 0:01:55]} Re6 {[%emt 0:00:42]} 20. Ng2 {[%emt 0:00:52]} Rae8 {[%emt 0:00:42]} 21. Nf4 {[%emt 0:00:27]} R6e7 {[%emt 0:00:30]} 22. Kg2 {[%emt 0:00:50]} Kg7 {[%emt 0:00:31]} 23. Nh3 {[%emt 0:01:03]} c5 {[%emt 0:00:53]} 24. Bb5 {[%emt 0:00:34]} c4 {[%emt 0:00:30]} 25. Qf4 {[%emt 0:01:02]} Qxf4 {[%emt 0:01:02]} 26. Nxf4 {[%emt 0:00:26]} g5 {[%emt 0:00:26]} 27. Nh3 {[%emt 0:00:33]} h6 {[%emt 0:00:27]} 28. Ng1 {[%emt 0:00:39]} Ra8 {[%emt 0:00:43]} 29. Re1 {[%emt 0:00:43]} Kf8 {[%emt 0:00:51]} 30. Rxe7 {[%emt 0:00:28]} Kxe7 {[%emt 0:00:26]} 31. Re1+ {[%emt 0:00:27]} Kd6 {[%emt 0:00:27]} 32. Ne2 {[%emt 0:00:38]} a6 {[%emt 0:00:29]} 33. Bxd7 {[%emt 0:00:38]} Nxd7 {[%emt 0:00:43]} 34. Nc3 {[%emt 0:00:33]} b5 {[%emt 0:00:28]} 35. Nd1 {[%emt 0:00:49]} a5 {[%emt 0:00:35]} 36. Ne3 {[%emt 0:00:27]} b4 {[%emt 0:00:34]} 37. Nf5+ {[%emt 0:00:46]} Kc7 {[%emt 0:00:41]} 38. Nxh6 {[%emt 0:00:29]} f6 {[%emt 0:00:27]} 39. Nf5 {[%emt 0:00:34]} Rb8 {[%emt 0:00:37]} 40. Re6 {[%emt 0:00:48]} Rb6 {[%emt 0:00:51]} 41. Re8 {[%emt 0:00:51]} c3 {[%emt 0:00:36]} 42. bxc3 {[%emt 0:00:40]} bxa3 {[%emt 0:00:31]} 43. Ne3 {[%emt 0:01:14]} Rb2 {[%emt 0:00:49]} 44. Ra8 {[%emt 0:00:36]} Rb5 45. Ra7+ {[%emt 0:01:31]} Kc8 {[%emt 0:00:55]} 46. c4 {[%emt 0:00:40]} a2 {[%emt 0:00:38]} 47. cxb5 {[%emt 0:00:41]} a1=Q {[%emt 0:00:32]} 48. Nxd5 {[%emt 0:00:27]} Qb2 {[%emt 0:00:36]} 49. Ne7+ {[%emt 0:01:34]} Kd8 {[%emt 0:00:27]} 50. Nc6+ {[%emt 0:00:25]} Ke8 {[%emt 0:00:26]} 51. Rxa5 {[%emt 0:00:26]} Nb6 {[%emt 0:00:37]} 52. Ra7 {[%emt 0:00:40]} Qxb5 {[%emt 0:00:31]} 53. Re7+ {[%emt 0:00:33]} Kf8 {[%emt 0:00:27]} 54. Re6 {[%emt 0:00:27]} Qd5 {[%emt 0:00:38]} 55. Rxf6+ {[%emt 0:00:28]} Kg7 {[%emt 0:00:29]} 56. Rg6+ {[%emt 0:00:26]} Kh7 {[%emt 0:00:31]} 57. Ne7 {[%emt 0:00:37]} Qxd4 {[%emt 0:00:29]} 58. Rh6+ {[%emt 0:00:27]} Kxh6 {[%emt 0:00:33]} 59. Nf5+ {[%emt 0:00:25]} Kg6 {[%emt 0:00:27]} 60. Nxd4 {[%emt 0:00:27]} Nd5 {[%emt 0:00:27]} 61. Ne2 {[%emt 0:00:28]} Kf5 {[%emt 0:00:28]} 62. g4+ {[%emt 0:00:26]} Kf6 {[%emt 0:00:31]} 63. Kg3 {[%emt 0:00:26]} Ke5 {[%emt 0:00:28]} 64. h4 1-0

[Event "Sambir Charity 2024"]
[Site "Sambir"]
[Date "2024.09.22"]
[Round "8.2"]
[White "Baziuk, Vladyslav"]
[Black "Matviychuk, Andrey"]
[Result "1-0"]
[ECO "E09"]
[WhiteElo "2247"]
[BlackElo "1983"]
[PlyCount "49"]
[EventDate "2024.09.10"]
[EventType "swiss"]
[EventCountry "UKR"]
[TimeControl "5400+30"]

1. d4 {[%emt 1:20:51]} d5 {[%emt 1:20:52]} 2. c4 {[%emt 0:00:26]} e6 {[%emt 0:00:27]} 3. Nf3 {[%emt 0:00:26]} Nf6 {[%emt 0:00:26]} 4. g3 {[%emt 0:00:26]} Be7 {[%emt 0:00:28]} 5. Bg2 {[%emt 0:00:27]} O-O {[%emt 0:00:31]} 6. O-O {[%emt 0:00:27]} Nbd7 {[%emt 0:00:30]} 7. Qc2 {[%emt 0:00:27]} c6 {[%emt 0:00:28]} 8. Nbd2 {[%emt 0:00:27]} b6 {[%emt 0:01:14]} 9. e4 {[%emt 0:00:29]} dxc4 {[%emt 0:00:36]} 10. Nxc4 {[%emt 0:00:35]} Bb7 {[%emt 0:00:37]} 11. Rd1 {[%emt 0:00:28]} c5 {[%emt 0:01:09]} 12. e5 {[%emt 0:01:00]} Nd5 {[%emt 0:00:32]} 13. h4 {[%emt 0:00:47]} cxd4 {[%emt 0:00:58]} 14. Rxd4 {[%emt 0:01:36]} Qc7 {[%emt 0:00:55]} 15. Qe2 {[%emt 0:00:39]} Rac8 {[%emt 0:01:06]} 16. Bg5 {[%emt 0:00:45]} Bc5 {[%emt 0:00:40]} 17. Rg4 {[%emt 0:01:36]} h5 {[%emt 0:00:50]} 18. Re4 {[%emt 0:00:43]} Ba6 {[%emt 0:01:22]} 19. Nfd2 {[%emt 0:00:56]} Nxe5 {[%emt 0:01:45]} 20. Rxe5 {[%emt 0:01:08]} Bxc4 21. Nxc4 Bd4 22. Re4 Qxc4 23. Qxc4 Rxc4 24. Rd1 e5 25. Rexd4 1-0

[Event "Sambir Charity 2024"]
[Site "Sambir"]
[Date "2024.09.22"]
[Round "8.3"]
[White "Abramchuk, Klavdia"]
[Black "Lozynskyi, Bohdan"]
[Result "0-1"]
[ECO "D51"]
[WhiteElo "2120"]
[BlackElo "2069"]
[PlyCount "148"]
[EventDate "2024.09.10"]
[EventType "swiss"]
[EventCountry "UKR"]
[TimeControl "5400+30"]

1. d4 {[%emt 1:20:54]} d5 {[%emt 1:20:53]} 2. c4 {[%emt 0:00:26]} e6 {[%emt 0:00:26]} 3. Nc3 {[%emt 0:00:26]} Nf6 {[%emt 0:00:26]} 4. Bg5 {[%emt 0:00:27]} Nbd7 {[%emt 0:00:27]} 5. e3 {[%emt 0:00:27]} Bb4 {[%emt 0:00:26]} 6. Qc2 {[%emt 0:00:32]} c5 {[%emt 0:00:26]} 7. Nf3 {[%emt 0:00:32]} Qa5 {[%emt 0:00:27]} 8. Bxf6 {[%emt 0:00:40]} Nxf6 {[%emt 0:00:27]} 9. Nd2 {[%emt 0:01:58]} cxd4 {[%emt 0:00:34]} 10. exd4 {[%emt 0:00:30]} Bd7 {[%emt 0:00:58]} 11. Bd3 {[%emt 0:01:44]} Rc8 {[%emt 0:00:47]} 12. c5 {[%emt 0:00:44]} O-O {[%emt 0:01:29]} 13. O-O {[%emt 0:00:29]} Bxc3 {[%emt 0:01:06]} 14. bxc3 {[%emt 0:00:36]} b6 {[%emt 0:00:32]} 15. Nb3 {[%emt 0:00:29]} Qa3 {[%emt 0:00:26]} 16. Qc1 {[%emt 0:00:55]} Qxc1 {[%emt 0:00:38]} 17. Raxc1 {[%emt 0:00:25]} Ba4 {[%emt 0:00:27]} 18. cxb6 {[%emt 0:00:37]} axb6 {[%emt 0:00:26]} 19. Nd2 {[%emt 0:00:33]} b5 {[%emt 0:00:46]} 20. Nb1 {[%emt 0:00:49]} Ne8 {[%emt 0:00:36]} 21. a3 {[%emt 0:00:46]} Nd6 {[%emt 0:00:33]} 22. Rfe1 {[%emt 0:00:29]} Rc7 {[%emt 0:00:27]} 23. Re2 {[%emt 0:00:31]} Rfc8 {[%emt 0:00:44]} 24. Rb2 {[%emt 0:00:42]} Kf8 {[%emt 0:00:41]} 25. f3 {[%emt 0:00:28]} Ke7 {[%emt 0:00:48]} 26. Kf2 {[%emt 0:00:27]} h6 {[%emt 0:00:28]} 27. Ke3 {[%emt 0:00:53]} g5 {[%emt 0:00:27]} 28. g3 {[%emt 0:00:33]} f5 {[%emt 0:00:40]} 29. Kf2 {[%emt 0:00:33]} Kf6 {[%emt 0:00:36]} 30. Re2 {[%emt 0:00:35]} Bb3 {[%emt 0:00:51]} 31. Rce1 {[%emt 0:00:29]} Re7 {[%emt 0:00:27]} 32. g4 {[%emt 0:01:07]} fxg4 {[%emt 0:00:42]} 33. fxg4 {[%emt 0:00:27]} Bc4 {[%emt 0:00:26]} 34. Ke3 {[%emt 0:00:36]} Kg7 {[%emt 0:00:46]} 35. Kd2 {[%emt 0:00:29]} Ne4+ {[%emt 0:00:54]} 36. Bxe4 {[%emt 0:00:33]} Bxe2 {[%emt 0:00:26]} 37. Rxe2 {[%emt 0:00:26]} dxe4 {[%emt 0:00:26]} 38. Rxe4 {[%emt 0:00:26]} e5 {[%emt 0:01:15]} 39. Kd3 {[%emt 0:00:35]} Kf6 {[%emt 0:00:29]} 40. Nd2 {[%emt 0:00:30]} exd4 {[%emt 0:01:24]} 41. Rxd4 {[%emt 0:00:32]} Re1 {[%emt 0:00:32]} 42. Rd5 {[%emt 0:01:00]} Rce8 {[%emt 0:01:37]} 43. Rd6+ {[%emt 0:00:54]} Ke5 {[%emt 0:00:38]} 44. Rd7 {[%emt 0:00:44]} Ra1 {[%emt 0:00:46]} 45. Rd4 {[%emt 0:00:42]} Rc8 {[%emt 0:00:42]} 46. Nf3+ {[%emt 0:00:30]} Ke6 {[%emt 0:00:30]} 47. Re4+ {[%emt 0:00:28]} Kf6 {[%emt 0:00:34]} 48. Nd4 {[%emt 0:00:26]} Rxa3 {[%emt 0:00:50]} 49. Re6+ {[%emt 0:00:48]} Kf7 {[%emt 0:00:29]} 50. Rxh6 {[%emt 0:00:26]} Raxc3+ {[%emt 0:00:33]} 51. Ke4 {[%emt 0:00:26]} b4 {[%emt 0:00:32]} 52. Rh7+ {[%emt 0:00:45]} Kg6 {[%emt 0:00:27]} 53. Rb7 {[%emt 0:00:26]} R3c4 {[%emt 0:00:30]} 54. Kd3 {[%emt 0:00:37]} Rc3+ {[%emt 0:00:26]} 55. Ke4 {[%emt 0:00:25]} R8c4 {[%emt 0:00:26]} 56. Rb6+ {[%emt 0:00:31]} Kf7 {[%emt 0:00:28]} 57. Rb7+ {[%emt 0:00:27]} Ke8 {[%emt 0:00:32]} 58. Kd5 {[%emt 0:00:30]} Kd8 {[%emt 0:01:08]} 59. Rb5 {[%emt 0:00:31]} Kc8 {[%emt 0:00:39]} 60. h3 {[%emt 0:00:45]} Kd7 {[%emt 0:01:09]} 61. Rb7+ {[%emt 0:00:28]} Ke8 {[%emt 0:00:31]} 62. Rb8+ {[%emt 0:00:26]} Kf7 {[%emt 0:00:27]} 63. Rb7+ {[%emt 0:00:28]} Kg6 {[%emt 0:00:33]} 64. Rb6+ {[%emt 0:00:26]} Kf7 {[%emt 0:00:31]} 65. Rb7+ {[%emt 0:00:27]} Rc7 {[%emt 0:00:31]} 66. Rxb4 {[%emt 0:00:27]} Rd7+ {[%emt 0:00:30]} 67. Ke4 {[%emt 0:00:26]} Re7+ {[%emt 0:00:34]} 68. Kd5 {[%emt 0:00:34]} Rxh3 {[%emt 0:00:32]} 69. Nf5 {[%emt 0:00:32]} Rd3+ {[%emt 0:00:29]} 70. Kc6 {[%emt 0:01:01]} Re6+ {[%emt 0:00:27]} 71. Kc7 {[%emt 0:00:27]} Kf6 {[%emt 0:00:33]} 72. Rb5 {[%emt 0:00:37]} Rc3+ {[%emt 0:00:32]} 73. Kb7 {[%emt 0:00:26]} Rc4 {[%emt 0:00:30]} 74. Rd5 {[%emt 0:01:03]} Rxg4 {[%emt 0:00:33]} 0-1

[Event "Sambir Charity 2024"]
[Site "Sambir"]
[Date "2024.09.22"]
[Round "8.4"]
[White "Levytskyi, Liubomyr"]
[Black "Pankiv, Maksym"]
[Result "0-1"]
[ECO "B24"]
[WhiteElo "1857"]
[BlackElo "1961"]
[PlyCount "50"]
[EventDate "2024.09.10"]
[EventType "swiss"]
[EventCountry "UKR"]
[TimeControl "5400+30"]

1. e4 {[%emt 1:20:51]} c5 {[%emt 1:20:51]} 2. Nc3 {[%emt 0:00:27]} Nc6 {[%emt 0:00:26]} 3. Bb5 {[%emt 0:00:26]} g6 {[%emt 0:00:32]} 4. Bxc6 {[%emt 0:00:26]} dxc6 {[%emt 0:00:27]} 5. d3 {[%emt 0:00:27]} Bg7 {[%emt 0:00:26]} 6. f4 {[%emt 0:00:26]} Nf6 {[%emt 0:00:34]} 7. Nf3 {[%emt 0:00:26]} O-O {[%emt 0:00:32]} 8. O-O {[%emt 0:00:28]} b6 {[%emt 0:01:02]} 9. Qe1 {[%emt 0:00:44]} Re8 {[%emt 0:00:56]} 10. Qh4 {[%emt 0:01:11]} Nd7 {[%emt 0:02:08]} 11. e5 {[%emt 0:03:54]} f6 {[%emt 0:01:13]} 12. Ne4 {[%emt 0:02:05]} Nf8 {[%emt 0:00:59]} 13. b4 {[%emt 0:01:11]} cxb4 {[%emt 0:00:55]} 14. Bb2 {[%emt 0:00:29]} f5 {[%emt 0:00:26]} 15. Ned2 {[%emt 0:01:31]} c5 {[%emt 0:00:33]} 16. Nc4 {[%emt 0:00:42]} Be6 {[%emt 0:00:34]} 17. Ne3 {[%emt 0:00:33]} Bf7 {[%emt 0:01:47]} 18. Rae1 {[%emt 0:00:52]} Bxa2 {[%emt 0:00:50]} 19. g4 {[%emt 0:00:52]} e6 {[%emt 0:00:33]} 20. Qg3 {[%emt 0:00:47]} Bd5 {[%emt 0:00:44]} 21. Nh4 {[%emt 0:00:39]} Qd7 {[%emt 0:01:12]} 22. gxf5 {[%emt 0:00:31]} exf5 {[%emt 0:00:36]} 23. Nexf5 {[%emt 0:01:37]} gxf5 {[%emt 0:00:31]} 24. e6 {[%emt 0:00:26]} Bxe6 {[%emt 0:00:56]} 25. Rxe6 {[%emt 0:00:46]} Rxe6 0-1